bitfinex-derivatives/quotes_ETHF0:USTF0_20250217
["timestamp","ask_amount","ask_price","bid_price","bid_amount"]
[1739785224898,0.73384,2725.3,2725.0,0.00550267]
[1739785225095,2.487,2725.2,2725.0,0.00550267]
[1739785225401,40.8,2725.1,2725.0,0.00550267]
[1739785225802,2.487,2725.2,2725.0,0.00550267]
[1739785226009,4.3562,2726.0,2725.0,3.20750187]
[1739785226211,0.73373,2725.7,2725.4,3.2078]
[1739785226411,2.487,2725.9,2725.4,3.2078]
[1739785226603,0.73375,2725.6,2725.4,3.2078]
[1739785227715,0.73377,2725.5,2725.4,3.2078]
[1739785228008,0.73377,2725.5,2725.1,3.94167]
[1739785228508,0.73375,2725.6,2725.2,0.73385]
[1739785228710,0.73374,2725.6,2725.2,0.73385]
[1739785228907,2.487,2725.7,2725.1,3.2078]
[1739785229107,2.487,2725.7,2725.4,3.2078]
[1739785229405,3.2078,2726.0,2725.6,3.2019992]
[1739785229608,2.70318244,2726.5,2725.9,3.2019992]
[1739785229908,3.2078,2726.6,2726.1,3.2078]
[1739785230114,5.0,2727.0,2726.5,3.2078]
[1739785230407,5.0,2727.0,2726.9,3.2019992]
[1739785230607,0.00273382,2728.0,2727.3,0.73327]
[1739785230807,0.73274,2729.4,2727.9,9.6117984]
[1739785231002,3.2078,2729.8,2727.9,9.6117984]
[1739785231003,0.7327,2729.5,2729.0,3.2078]
[1739785231309,6.4097992,2729.8,2728.6,6.4097992]
[1739785231310,3.20779312,2729.0,2728.6,6.4097992]
[1739785231513,3.2078,2730.1,2729.3,0.73274]
[1739785231710,3.2078,2731.0,2730.0,3.2019992]
[1739785232008,3.20779312,2730.5,2730.0,6.4097992]
[1739785232203,3.20779312,2730.1,2729.4,3.762]
[1739785232400,2.577,2730.0,2729.4,3.2078]
[1739785232604,3.20779312,2730.0,2729.7,3.2078]
[1739785232810,5.8038,2730.2,2729.5,0.00549209]
[1739785233016,3.20779312,2729.6,2729.5,0.00549209]
[1739785233206,3.20779312,2729.7,2729.6,7.8494409]
[1739785233510,3.20779312,2730.1,2729.5,11.06273299]
[1739785233809,3.20779312,2729.7,2729.5,0.00549209]
[1739785234009,2.695,2730.1,2729.6,11.0572409]
[1739785234205,3.2078,2730.3,2729.6,3.2078]
[1739785234413,0.73267,2729.6,2729.5,2.09e-06]
[1739785234712,3.43367,2729.6,2729.5,2.09e-06]
[1739785234910,3.43367,2729.6,2727.8,0.529]
[1739785234911,1.83187,2729.4,2727.8,3.7368]
[1739785235213,0.7332,2727.7,2727.5,3.2078]
[1739785235408,0.73315,2727.8,2727.5,3.2078]
[1739785235709,40.8,2727.9,2727.6,7.7038191]
[1739785235915,40.8,2727.9,2727.5,3.2078]
[1739785236213,0.73321,2727.6,2727.5,0.00549209]
[1739785236409,6.66816472,2727.6,2726.8,3.49957624]
[1739785236709,40.8,2727.9,2726.9,7.74401364]
[1739785236710,45.13681974,2727.9,2726.9,7.74401364]
[1739785236914,40.8,2727.9,2727.4,3.2078]
[1739785237319,40.8,2727.9,2727.5,7.67583611]
[1739785237705,0.00541907,2728.0,2727.4,0.00549209]
[1739785237901,0.73319,2727.7,2727.4,0.00549209]
[1739785238102,2.71741907,2728.0,2727.6,3.2078]
[1739785238303,0.00541907,2728.0,2727.6,3.2078]
[1739785238511,0.00541907,2728.0,2727.9,3.2078]
[1739785238914,0.00541907,2728.0,2727.9,11.02415358]
[1739785239118,0.73851907,2728.0,2727.9,11.02415358]
[1739785239319,2.72041907,2728.0,2727.6,3.2078]
[1739785240014,0.73313,2727.9,2727.6,3.2078]
[1739785240212,0.3672,2729.5,2727.7,7.87219835]
[1739785240410,3.2078,2729.4,2728.7,3.2078]
[1739785240706,2.754,2729.3,2728.7,3.2078]
[1739785240915,3.3292,2729.3,2728.7,3.2078]
[1739785241414,3.3292,2729.3,2728.7,3.21329209]
[1739785241415,2.753,2729.2,2728.7,3.21329209]
[1739785242115,0.00549209,2729.3,2729.0,3.2078]
[1739785243916,0.00549209,2729.3,2728.7,3.75899209]
[1739785244114,0.73279,2729.2,2728.7,3.75899209]
[1739785244311,2.75749209,2729.3,2729.0,3.2078]
[1739785244919,0.7328,2729.1,2729.0,3.2078]
[1739785245214,2.75749209,2729.3,2728.7,3.21329209]
[1739785245815,0.73286,2728.9,2728.7,3.21329209]
[1739785246214,0.00549209,2729.3,2728.8,7.5114912]
[1739785246418,0.00549209,2729.3,2729.2,3.2078]
[1739785247022,0.73824209,2729.3,2729.2,3.2078]
[1739785247217,0.00549209,2729.3,2729.2,3.2078]
[1739785249618,0.73273,2729.4,2729.2,3.2078]
[1739785250019,2.741,2729.6,2729.2,3.2078]
[1739785250220,0.73273,2729.4,2729.2,3.2078]
[1739785251121,0.73271,2729.5,2729.2,3.2078]
[1739785251426,0.73272,2729.4,2729.2,3.2078]
[1739785251818,3.2078,2729.8,2729.2,3.2078]
[1739785251819,0.73271,2729.5,2729.2,3.2078]
[1739785252021,2.732,2730.3,2729.3,7.70755769]
[1739785252227,2.732,2730.3,2729.9,3.2078]
[1739785252228,0.73256,2730.0,2729.9,3.2078]
[1739785252726,2.732,2730.3,2729.9,3.2078]
[1739785253117,0.73255,2730.1,2729.9,3.2078]
[1739785253322,2.732,2730.3,2729.9,3.2078]
[1739785253523,0.73255,2730.1,2729.9,3.2078]
[1739785254027,2.732,2730.3,2729.9,3.2078]
[1739785254227,2.732,2730.3,2729.6,3.2078]
[1739785254432,1.83115,2730.4,2729.6,3.2078]
[1739785254625,1.83115,2730.4,2729.7,7.48301603]
[1739785254626,0.73263,2729.8,2729.7,7.48301603]
[1739785254923,2.731,2730.3,2729.6,3.2078]
[1739785255129,0.73264,2729.7,2729.6,3.2078]
[1739785255323,5.03913,2730.2,2729.6,3.2078]
[1739785255533,3.2078,2730.2,2729.6,3.2078]
[1739785255725,0.73262,2729.8,2729.6,3.2078]
[1739785255927,40.8,2730.1,2729.6,3.2078]
[1739785256131,2.731,2730.3,2729.6,3.2078]
[1739785256326,3.2078,2730.5,2729.6,3.2078]
[1739785256522,3.2078,2730.5,2730.0,3.2078]
[1739785256832,2.733,2730.5,2730.0,3.2078]
[1739785257035,0.73254,2730.1,2730.0,3.2078]
[1739785257529,3.2078,2730.5,2729.7,3.2078]
[1739785257726,2.731,2730.4,2730.0,3.2078]
[1739785257928,0.73254,2730.1,2730.0,3.2078]
[1739785258129,2.731,2730.4,2729.7,3.2078]
[1739785258130,0.73258,2730.0,2729.7,3.2078]
[1739785258331,3.2078,2730.7,2729.7,3.2078]
[1739785258526,24.29416429,2731.1,2729.7,3.2078]
[1739785258527,0.73248,2730.3,2730.2,3.2078]
[1739785258730,2.729,2730.6,2729.8,3.2078]
[1739785258932,0.73259,2729.9,2729.8,3.2078]
[1739785259226,0.73258,2730.0,2729.9,0.00549209]
[1739785259420,0.73254,2730.1,2729.9,0.00549209]
[1739785259620,1.83111,2730.5,2729.9,0.00549209]
[1739785259827,0.73256,2730.0,2729.9,0.00549209]
[1739785260025,1.83111,2730.5,2729.9,0.00549209]
[1739785260233,0.73252,2730.2,2729.9,0.00549209]
[1739785260430,3.2078,2730.7,2730.1,3.2078]
[1739785260629,0.73244,2730.5,2730.1,3.2078]
[1739785260934,2.726,2730.6,2730.1,3.2078]
[1739785261121,0.73251,2730.2,2730.1,3.2078]
[1739785261639,0.73256,2730.0,2729.9,0.00549209]
[1739785262435,1.83141,2730.0,2729.1,3.2078]
[1739785262629,3.2078,2729.7,2729.1,3.2078]
[1739785262830,0.73271,2729.5,2729.2,7.90127496]
[1739785263033,3.2078,2729.4,2728.9,0.5842]
[1739785263330,2.728,2729.4,2729.0,3.2078]
[1739785263529,2.728,2729.4,2729.3,3.2078]
[1739785263931,0.00549209,2729.5,2729.3,3.94054]
[1739785264227,0.00549209,2729.5,2729.4,0.73272]
[1739785264633,0.00549209,2729.5,2729.4,8.3629792]
[1739785265031,3.2078,2730.8,2729.9,0.73258]
[1739785265331,3.2078,2730.8,2730.1,3.2078]
[1739785265539,3.2078,2730.8,2730.0,7.5902091]
[1739785265540,10.912,2733.2,2730.7,3.2078]
[1739785265833,10.912,2733.2,2730.0,16.3484367]
[1739785265834,3.2078,2732.2,2731.4,3.2078]
[1739785266039,3.2078,2732.2,2731.3,3.96716429]
[1739785266040,0.73203,2732.0,2731.7,3.2078]
[1739785266229,0.73213,2731.6,2731.5,0.00549209]
[1739785266426,2.748,2731.6,2731.5,0.00549209]
[1739785266630,2.751,2731.9,2731.5,0.00549209]
[1739785266934,0.73213,2731.6,2731.5,0.00549209]
[1739785267128,0.5819,2732.1,2731.5,0.00549209]
[1739785267329,2.763,2732.0,2731.5,0.00549209]
[1739785267729,0.73207,2731.9,2731.5,0.00549209]
[1739785267929,0.5819,2732.1,2731.7,3.2078]
[1739785268124,3.3449,2732.1,2731.7,3.2078]
[1739785268335,3.96716429,2731.8,2731.7,3.2078]
[1739785268536,3.96716429,2731.8,2731.5,0.00549209]
[1739785268537,0.73213,2731.6,2731.5,0.00549209]
[1739785268832,7.17496429,2732.0,2731.5,0.00549209]
[1739785269033,2.771,2731.9,2731.5,0.00549209]
[1739785269434,3.2078,2732.0,2731.5,0.00549209]
[1739785269635,2.771,2731.9,2731.7,3.2078]
[1739785271138,4.50636429,2732.5,2731.7,3.2078]
[1739785271336,3.2078,2733.2,2732.1,3.2078]
[1739785271641,3.2078,2733.5,2732.8,3.2078]
[1739785271832,0.73165,2733.4,2732.8,3.2078]
[1739785272032,4.69894429,2733.0,2732.9,7.84830416]
[1739785272331,4.69894429,2733.0,2732.8,3.21329209]
[1739785272534,1.27098,2732.9,2732.8,3.21329209]
[1739785272725,1.27098,2732.9,2732.8,0.00549209]
[1739785272726,4.50636429,2732.9,2732.8,0.00549209]
[1739785272935,0.5392,2732.9,2732.8,0.00549209]
[1739785273338,1.26493883,2732.9,2732.8,0.00549209]
[1739785273834,8.43990312,2732.9,2732.8,0.00549209]
[1739785274132,14.43990312,2732.9,2732.8,0.00549209]
[1739785274443,54.50812312,2732.9,2731.9,3.2078]
[1739785274739,7.17496429,2732.6,2731.9,3.2078]
[1739785275536,0.00549209,2732.5,2732.0,0.00549209]
[1739785275740,0.73192,2732.4,2732.0,0.00549209]
[1739785275935,2.773,2732.3,2732.0,0.00549209]
[1739785276234,0.732,2732.1,2732.0,0.00549209]
[1739785276638,0.5778,2732.2,2732.0,0.00549209]
[1739785276838,0.00549209,2732.5,2732.0,0.00549209]
[1739785277035,0.00549209,2732.5,2732.3,3.2078]
[1739785278643,0.00549209,2732.5,2732.4,0.73192]
[1739785278839,0.00549209,2732.5,2732.3,3.2078]
[1739785279648,0.00549209,2732.5,2732.4,8.24372878]
[1739785280742,0.5778,2733.4,2732.5,1.82974]
[1739785280940,2.781,2733.4,2733.3,3.2078]
[1739785281242,2.78,2733.6,2733.3,3.2078]
[1739785281439,0.5637,2734.0,2733.3,3.2078]
[1739785281646,2.785,2734.2,2733.7,3.2078]
[1739785281841,2.785,2734.2,2733.4,7.88435707]
[1739785281842,2.785,2734.2,2733.4,11.09764916]
[1739785282039,0.73161,2733.6,2733.4,3.21329209]
[1739785282338,40.8,2734.2,2733.4,3.21329209]
[1739785282545,3.51548,2734.1,2733.7,3.2078]
[1739785282738,0.73154,2733.9,2733.7,3.2078]
[1739785282946,2.784,2734.1,2733.7,3.2078]
[1739785283247,0.73162,2733.5,2733.4,0.00549209]
[1739785283447,1.82914,2733.4,2732.4,3.2078]
[1739785283642,1.82914,2733.4,2732.1,0.5796]
[1739785283643,6.75316429,2733.5,2732.7,3.2078]
[1739785283849,0.73176,2733.0,2732.7,3.2078]
[1739785284144,2.787,2733.0,2732.7,3.2078]
[1739785284346,0.7318,2732.9,2732.7,3.2078]
[1739785284738,0.73181,2732.8,2732.7,3.2078]
[1739785284939,2.787,2733.0,2732.6,0.00549209]
[1739785285341,0.00549209,2733.1,2732.7,3.2078]
[1739785285556,0.00549209,2733.1,2733.0,3.2078]
[1739785286549,0.00549209,2733.1,2733.0,3.93956]
[1739785286746,7.17496429,2734.5,2733.0,17.40091379]
[1739785287047,2.789,2734.5,2733.9,3.2078]
[1739785287243,0.73146,2734.2,2733.9,3.2078]
[1739785287544,2.789,2734.5,2733.9,3.2078]
[1739785287738,0.73149,2734.0,2733.9,3.2078]
[1739785288451,0.5584,2734.0,2733.3,3.2078]
[1739785288646,0.7316,2733.6,2733.3,3.2078]
[1739785288846,0.5584,2734.0,2733.3,3.2078]
[1739785289047,0.5584,2734.0,2733.6,3.2078]
[1739785289345,0.73157,2733.7,2733.6,3.2078]
[1739785289552,0.73167,2733.4,2733.3,3.2078]
[1739785289740,0.73173,2733.1,2732.9,3.2078]
[1739785289943,0.73176,2733.0,2732.9,3.2078]
[1739785290345,0.5584,2733.2,2732.6,3.21329209]
[1739785290547,1.1235,2733.2,2732.6,3.21329209]
[1739785290742,0.73184,2732.7,2732.6,0.00549209]
[1739785290951,3.52084,2732.7,2732.6,0.00549209]
[1739785294547,0.73178,2733.0,2732.6,0.00549209]
[1739785294851,2.784,2732.9,2732.6,0.00549209]
[1739785295158,2.784,2732.8,2732.6,3.21329209]
[1739785295453,2.785,2733.0,2732.6,3.94514209]
[1739785295642,0.5584,2733.2,2732.9,3.2078]
[1739785295643,2.786,2733.1,2732.9,3.2078]
[1739785296055,3.3434,2733.2,2732.9,3.2078]
[1739785296252,0.73175,2733.1,2732.9,3.2078]
[1739785296552,3.3434,2733.2,2732.9,3.2078]
[1739785297156,0.73172,2733.2,2732.9,3.2078]
[1739785297449,2.781,2733.2,2732.9,3.2078]
[1739785297950,2.778,2733.3,2732.9,3.93958]
[1739785298151,2.778,2733.3,2732.9,3.93957]
[1739785298350,2.778,2733.3,2732.9,3.2078]
[1739785298648,0.5308,2733.6,2732.9,3.2078]
[1739785298959,0.73174,2733.1,2732.9,3.2078]
[1739785299248,2.775,2733.5,2732.9,3.2078]
[1739785299451,0.73176,2733.0,2732.9,3.2078]
[1739785300250,3.50276,2733.0,2732.9,3.2078]
[1739785300749,0.73184,2732.7,2732.6,0.00549209]
[1739785302148,0.5699,2732.9,2732.6,0.00549209]
[1739785302356,2.774,2732.8,2732.6,0.00549209]
[1739785302748,1.30171,2732.9,2732.6,0.00549209]
[1739785302948,2.774,2732.8,2732.6,0.00549209]
[1739785303252,2.773,2732.8,2732.6,0.00549209]
[1739785303450,0.73184,2732.7,2732.6,0.00549209]
[1739785304952,3.50384,2732.7,2732.6,0.00549209]
[1739785305747,2.772,2732.7,2731.9,3.2078]
[1739785305951,2.772,2732.7,2731.6,3.2078]
[1739785305952,1.82985,2732.4,2731.6,3.2078]
[1739785306154,0.73211,2731.7,2731.6,3.2078]
[1739785306663,2.773,2731.8,2731.6,3.2078]
[1739785307358,2.778,2731.8,2731.6,3.2078]
[1739785309061,2.77949209,2732.0,2731.6,3.2078]
[1739785309360,0.00549209,2732.0,2731.9,3.2078]
[1739785310058,0.00549209,2732.0,2731.9,3.93985]
[1739785310654,0.00549209,2732.0,2731.9,3.2078]
[1739785310856,0.00549209,2732.0,2731.9,3.93985]
[1739785311562,0.00549209,2732.0,2731.9,10.89528804]
[1739785311965,0.00549209,2732.0,2731.9,11.62733804]
[1739785313064,0.00549209,2732.0,2731.9,10.89528804]
[1739785313363,0.73752209,2732.0,2731.9,3.2078]
[1739785313562,0.00549209,2732.0,2731.9,3.93985]
[1739785313860,3.2078,2733.6,2732.0,1.83007]
[1739785314057,2.777,2733.5,2732.9,3.2078]
[1739785314253,2.778,2733.4,2732.9,3.2078]
[1739785314459,0.73175,2733.1,2732.9,3.2078]
[1739785314658,0.73176,2733.0,2732.9,3.2078]
[1739785314854,2.776,2733.3,2732.9,3.2078]
[1739785315865,2.776,2733.3,2733.0,0.73175]
[1739785316058,1.26192,2733.6,2733.2,3.2078]
[1739785316259,3.2078,2734.0,2733.2,3.2078]
[1739785316457,0.73156,2733.8,2733.2,3.93949]
[1739785316661,0.5357,2733.9,2733.2,3.2078]
[1739785316871,0.73158,2733.7,2733.2,3.2078]
[1739785317160,2.777,2733.8,2733.2,3.20350253]
[1739785317356,0.73167,2733.4,2733.2,3.20350253]
[1739785317552,0.73168,2733.3,2732.8,0.73179]
[1739785317757,0.73166,2733.4,2733.2,3.2078]
[1739785317957,3.50868,2733.3,2732.9,7.83783064]
[1739785318161,0.73171,2733.2,2732.8,3.2078]
[1739785318664,3.3127,2733.3,2732.8,3.2078]
[1739785319062,0.73177,2733.0,2732.8,3.2078]
[1739785319363,7.81969641,2733.3,2732.7,0.00549209]
[1739785319564,11.02749641,2733.3,2732.7,0.00549209]
[1739785319755,0.73181,2732.8,2732.7,0.00549209]
[1739785319958,3.50481,2732.8,2732.7,0.00549209]
[1739785320158,2.773,2732.8,2732.7,0.00549209]
[1739785320561,0.73177,2733.0,2732.7,0.00549209]
[1739785320754,0.73181,2732.8,2732.7,0.00549209]
[1739785320959,3.50181,2732.8,2732.7,0.00549209]
[1739785321770,0.73181,2732.8,2732.7,0.00549209]
[1739785321977,3.50381,2732.8,2732.7,0.00549209]
[1739785322970,0.73181,2732.8,2732.7,0.00549209]
[1739785323163,3.50181,2732.8,2732.7,0.00549209]
[1739785323470,3.50081,2732.8,2732.7,0.00549209]
[1739785324469,0.73198,2732.2,2731.9,3.2078]
[1739785324671,0.73201,2732.1,2731.9,3.2078]
[1739785324965,2.766,2732.1,2731.9,3.2078]
[1739785325169,0.73203,2732.0,2731.9,3.2078]
[1739785325765,2.766,2732.1,2731.9,3.2078]
[1739785325972,3.498,2732.1,2731.9,3.2078]
[1739785326173,2.766,2732.1,2731.7,0.00549209]
[1739785326466,0.73206,2731.9,2731.7,0.00549209]
[1739785326877,2.766,2732.1,2731.7,0.00549209]
[1739785327070,0.00549209,2732.2,2732.0,0.73201]
[1739785327260,0.00549209,2732.2,2731.8,3.2078]
[1739785327261,0.00549209,2732.2,2732.1,3.2078]
[1739785327571,0.00549209,2732.2,2731.8,3.2078]
[1739785327872,0.58839209,2732.2,2731.8,3.2078]
[1739785328073,2.77649209,2732.2,2732.1,3.2078]
[1739785328773,0.00549209,2732.2,2732.1,3.9398]
[1739785329170,2.77,2732.7,2732.1,3.2078]
[1739785329377,2.77,2732.7,2732.5,3.2078]
[1739785329378,0.73187,2732.6,2732.5,3.2078]
[1739785329571,0.73187,2732.6,2731.8,0.568]
[1739785329769,2.77,2732.7,2732.2,3.2078]
[1739785329969,2.77,2732.7,2731.9,10.8172914]
[1739785330272,2.77,2732.7,2732.3,3.2078]
[1739785330477,0.5491,2732.8,2732.3,3.2078]
[1739785330666,2.776,2732.7,2732.0,3.2078]
[1739785330873,0.73198,2732.2,2732.0,3.2078]
[1739785331168,3.50998,2732.2,2732.0,3.2078]
[1739785331469,0.732,2732.1,2732.0,3.2078]
[1739785331670,1.2691,2732.1,2732.0,3.2078]
[1739785332175,1.8306,2732.1,2732.0,3.2078]
[1739785332873,0.73208,2731.8,2731.7,0.00549209]
[1739785333871,3.93988,2731.8,2731.7,0.00549209]
[1739785334072,3.2078,2731.8,2731.1,3.2078]
[1739785334271,2.773,2731.7,2731.1,3.2078]
[1739785335283,0.73216,2731.6,2731.1,3.21329209]
[1739785335471,2.77849209,2731.7,2731.1,3.21329209]
[1739785335673,0.73217,2731.5,2731.1,3.21329209]
[1739785335878,0.73215,2731.6,2731.1,3.21329209]
[1739785336176,0.73217,2731.5,2731.1,3.21329209]
[1739785336375,2.769,2731.4,2731.1,3.21329209]
[1739785336975,0.00549209,2731.7,2731.3,0.73219]
[1739785337277,2.766,2731.4,2731.1,3.21329209]
[1739785337779,2.765,2731.5,2731.1,3.21329209]
[1739785338277,2.765,2731.5,2731.1,3.94554209]
[1739785338579,3.49717,2731.5,2731.1,3.21329209]
[1739785338974,2.765,2731.5,2731.1,3.21329209]
[1739785339475,0.73223,2731.3,2731.1,3.21329209]
[1739785339675,2.765,2731.5,2731.2,0.73224]
[1739785339976,2.765,2731.5,2731.1,3.21329209]
[1739785340379,2.761,2731.5,2731.1,3.94554209]
[1739785340777,0.00549209,2731.7,2731.2,0.73223]
[1739785340981,2.76,2731.6,2731.2,0.73223]
[1739785341383,2.76249209,2731.7,2731.1,3.21329209]
[1739785341683,0.7322,2731.4,2731.1,3.21329209]
[1739785341870,2.76249209,2731.7,2731.1,3.21329209]
[1739785342279,2.76249209,2731.7,2731.3,0.73219]
[1739785342679,3.49460209,2731.7,2731.4,0.5827]
[1739785343176,2.76249209,2731.7,2731.4,0.5827]
[1739785343578,2.76249209,2731.7,2731.1,3.21329209]
[1739785344080,0.73224,2731.2,2731.1,3.21329209]
[1739785344280,6.69904,2731.2,2731.1,0.00549209]
[1739785344577,9.93287947,2731.2,2730.2,3.2078]
[1739785344775,3.96607947,2731.2,2730.6,3.2078]
[1739785344976,0.00549209,2731.7,2730.9,3.2078]
[1739785345176,2.757,2731.6,2731.0,0.5643]
[1739785345372,0.73223,2731.3,2731.0,0.5643]
[1739785345682,0.73224,2731.3,2731.0,0.5643]
[1739785345978,2.757,2731.6,2731.0,0.5643]
[1739785346178,2.757,2731.6,2731.2,3.2078]
[1739785346383,0.00549209,2731.7,2731.2,3.2078]
[1739785346581,0.00549209,2731.7,2731.3,3.96607947]
[1739785346882,0.00549209,2731.7,2731.2,3.2078]
[1739785346883,2.77649209,2731.7,2731.2,3.2078]
[1739785347078,2.77649209,2731.7,2731.0,1.1449]
[1739785347384,0.73227,2731.1,2731.0,0.5643]
[1739785347578,0.73229,2731.0,2730.9,0.00549209]
[1739785347786,2.777,2731.1,2730.9,0.00549209]
[1739785347981,2.777,2731.3,2731.0,0.73229]
[1739785348277,2.777,2731.3,2731.1,0.5859]
[1739785348883,2.777,2731.3,2730.9,0.00549209]
[1739785349183,0.73229,2731.0,2730.9,0.00549209]
[1739785350982,3.96607947,2731.0,2730.2,0.558]
[1739785351288,3.2078,2730.8,2730.2,0.558]
[1739785351476,3.50439,2730.7,2730.2,0.558]
[1739785351676,0.73241,2730.6,2730.2,0.558]
[1739785352479,2.772,2730.7,2730.2,0.558]
[1739785352782,3.50438,2730.7,2730.2,0.558]
[1739785352980,2.772,2730.7,2730.2,0.558]
[1739785353287,2.772,2730.7,2730.2,3.7658]
[1739785353584,0.7324,2730.6,2730.2,0.558]
[1739785353989,2.772,2730.7,2730.2,0.558]
[1739785354181,2.772,2730.7,2730.2,3.7658]
[1739785354482,3.50439,2730.7,2730.2,3.7658]
[1739785354689,2.772,2730.7,2730.2,3.7658]
[1739785354985,3.50439,2730.7,2730.2,3.7658]
[1739785355285,0.7324,2730.6,2730.2,3.7658]
[1739785355478,2.772,2730.7,2730.2,3.7658]
[1739785355683,0.7324,2730.6,2730.2,3.7658]
[1739785356490,0.73243,2730.5,2730.2,3.7658]
[1739785356783,2.772,2730.7,2730.2,3.7658]
[1739785356977,2.772,2730.7,2730.1,0.00549209]
[1739785357290,0.73251,2730.2,2730.1,0.00549209]
[1739785357593,3.48551,2730.2,2730.1,0.00549209]
[1739785358189,3.48551,2730.2,2729.9,3.2078]
[1739785358190,8.753,2730.2,2729.4,3.2078]
[1739785358385,3.2078,2729.8,2729.4,3.2078]
[1739785358687,2.749,2729.7,2729.4,3.2078]
[1739785359281,0.73267,2729.6,2729.4,3.2078]
[1739785359480,2.749,2729.7,2729.4,3.2078]
[1739785359980,0.73268,2729.6,2729.4,3.2078]
[1739785360177,2.749,2729.7,2729.4,3.2078]
[1739785360383,2.744,2729.7,2729.4,3.2078]
[1739785360591,0.00549209,2729.8,2729.4,3.2078]
[1739785361491,0.73267,2729.7,2729.4,3.2078]
[1739785361790,0.00549209,2729.8,2729.4,3.2078]
[1739785361984,2.741,2729.7,2729.5,0.73268]
[1739785362179,2.741,2729.7,2729.4,3.2078]
[1739785362388,0.7327,2729.5,2729.4,3.2078]
[1739785363486,3.4717,2729.5,2729.4,3.2078]
[1739785364184,0.00549209,2729.8,2729.4,3.2078]
[1739785364387,2.741,2729.7,2729.4,3.2078]
[1739785364584,0.00549209,2729.8,2729.4,3.2078]
[1739785365392,0.73813209,2729.8,2729.4,3.2078]
[1739785365592,3.21329209,2729.8,2729.4,3.2078]
[1739785365791,0.73269,2729.6,2729.4,3.2078]
[1739785365984,0.00549209,2729.8,2729.4,3.2078]
[1739785366291,3.21329209,2729.8,2729.4,3.2078]
[1739785366592,3.94591209,2729.8,2729.4,3.2078]
[1739785366787,3.21329209,2729.8,2729.4,3.2078]
[1739785366985,0.7327,2729.5,2729.4,3.2078]
[1739785367586,3.21329209,2729.8,2729.4,3.94052]
[1739785367785,40.8,2729.7,2729.4,3.2078]
[1739785368297,0.7327,2729.5,2729.4,3.2078]
[1739785368596,0.5488,2729.6,2729.4,3.2078]
[1739785369092,40.8,2729.5,2729.4,3.2078]
[1739785369283,40.8,2729.5,2729.4,3.94052]
[1739785369789,0.00549209,2729.8,2729.4,3.2078]
[1739785369989,2.74549209,2729.8,2729.4,3.2078]
[1739785370284,40.8,2729.7,2729.4,3.2078]
[1739785370793,0.7327,2729.5,2729.4,3.2078]
[1739785370993,3.89953349,2729.5,2729.4,3.2078]
[1739785371498,44.69953349,2729.5,2729.4,3.2078]
[1739785372393,46.70383349,2729.5,2729.4,3.2078]
[1739785372587,40.8,2729.5,2729.4,3.2078]
[1739785372793,44.2737,2729.5,2729.4,3.2078]
[1739785373001,43.541,2729.5,2729.4,3.2078]
[1739785373297,43.541,2729.5,2729.4,3.754]
[1739785374186,44.2737,2729.5,2729.4,3.754]
[1739785374795,43.541,2729.5,2729.3,0.00549209]
[1739785374993,0.5308,2729.4,2729.3,0.00549209]
[1739785375700,5.04182203,2729.4,2729.3,0.00549209]
[1739785376602,40.8,2729.5,2729.4,0.73272]
[1739785376794,0.00549209,2729.8,2729.7,0.73264]
[1739785376995,0.00549209,2729.8,2729.6,3.2078]
[1739785377195,0.00549209,2729.8,2729.7,0.73264]
[1739785378099,2.74149209,2729.8,2729.7,0.73264]
[1739785378302,0.00549209,2729.8,2729.7,0.73264]
[1739785382508,2.726,2730.1,2730.0,0.73256]
[1739785382708,2.726,2730.1,2730.0,3.94036]
[1739785382902,43.525,2730.4,2730.0,3.2078]
[1739785383110,40.8,2730.4,2730.1,1.1367]
[1739785383401,40.8,2730.4,2730.3,3.94028]
[1739785383607,0.00549209,2730.5,2730.4,0.73246]
[1739785384005,0.00549209,2730.5,2730.1,1.1367]
[1739785384211,0.73249,2730.3,2730.1,0.5693]
[1739785384503,0.00549209,2730.5,2730.1,0.5693]
[1739785384504,0.73247,2730.4,2730.1,0.5693]
[1739785384693,3.97002203,2730.3,2729.7,3.2078]
[1739785384899,2.725,2730.2,2729.7,3.2078]
[1739785385104,0.73257,2730.0,2729.7,3.2078]
[1739785385694,0.5628,2730.0,2729.7,3.2078]
[1739785386202,4.52522203,2730.3,2729.7,3.2078]
[1739785386398,2.722,2730.2,2730.0,0.73255]
[1739785386898,0.00549209,2730.5,2729.7,3.2078]
[1739785387102,0.00549209,2730.5,2730.0,3.2078]
[1739785387103,2.723,2730.4,2730.0,3.2078]
[1739785387305,2.723,2730.4,2730.1,0.5457]
[1739785387506,0.00549209,2730.5,2730.1,1.27823]
[1739785387704,0.00549209,2730.5,2730.2,0.73248]
[1739785387705,2.724,2730.4,2730.2,0.73248]
[1739785388007,2.724,2730.4,2730.1,0.5457]
[1739785388200,2.724,2730.4,2730.2,0.7325]
[1739785388401,2.724,2730.4,2730.1,0.5457]
[1739785388595,2.724,2730.4,2730.1,1.27822]
[1739785388800,2.724,2730.4,2730.1,0.5457]
[1739785389199,2.724,2730.4,2730.3,0.73248]
[1739785390198,2.724,2730.4,2730.1,0.5457]
[1739785390803,2.724,2730.4,2730.3,0.73248]
[1739785391004,0.00549209,2730.5,2730.1,0.5457]
[1739785391205,2.72349209,2730.5,2730.4,0.73246]
[1739785391705,2.72349209,2730.5,2730.2,0.73249]
[1739785391907,0.73247,2730.4,2730.3,0.00229791]
[1739785392305,0.73247,2730.4,2729.6,3.2078]
[1739785392306,3.2078,2730.4,2729.7,0.5411]
[1739785392607,3.94035,2730.1,2729.5,0.73268]
[1739785392805,3.45457,2730.0,2729.4,1.27381]